fUSD/lending_fUSD_20240329
["ID","MTS","AMOUNT","RATE_DAILY","PERIOD"]
[320976698,1711726273578,-8012.99,0.000515,7]
[320976699,1711726273589,-8012.99,0.000515,7]
[320976700,1711726273600,-8012.99,0.000515,7]
[320976701,1711726273610,-8012.99,0.000515,7]
[320976702,1711726273621,-500.0,0.00051506,120]
[320976703,1711726273632,-500.0,0.00051506,120]
[320976704,1711726273642,-500.0,0.00051506,120]
[320976705,1711726273652,-500.0,0.00051506,120]
[320976706,1711726273663,-500.0,0.00051506,120]
[320976707,1711726273673,-500.0,0.00051506,120]
[320976708,1711726273684,-500.0,0.00051506,120]
[320976709,1711726273696,-500.0,0.00051506,120]
[320976710,1711726273707,-500.0,0.00051506,120]
[320976711,1711726273717,-500.0,0.00051506,120]
[320976712,1711726273728,-500.0,0.00051506,120]
[320976713,1711726273739,-500.0,0.00051506,120]
[320976714,1711726273749,-500.0,0.00051506,120]
[320976715,1711726273759,-500.0,0.00051506,120]
[320976716,1711726273771,-500.0,0.00051506,120]
[320976717,1711726273785,-500.0,0.00051506,120]
[320976718,1711726273794,-500.0,0.00051506,2]
[320976719,1711726273811,-500.0,0.00051506,120]
[320976720,1711726273822,-500.0,0.00051506,120]
[320976721,1711726273832,-500.0,0.00051506,120]
[320976722,1711726273841,-500.0,0.00051506,120]
[320976723,1711726273850,-500.0,0.00051506,120]
[320976724,1711726273860,-500.0,0.00051506,120]
[320976725,1711726273870,-500.0,0.00051506,120]
[320976726,1711726273879,-500.0,0.00051506,120]
[320976727,1711726273889,-500.0,0.00051506,2]
[320976728,1711726273899,-500.0,0.00051506,120]
[320976729,1711726273909,-500.0,0.00051506,120]
[320976730,1711726273919,-500.0,0.00051506,120]
[320976731,1711726273929,-500.0,0.00051506,120]
[320976732,1711726273939,-500.0,0.00051506,120]
[320976733,1711726273949,-500.0,0.00051506,2]
[320976734,1711726273959,-500.0,0.00051506,120]
[320976735,1711726273968,-500.0,0.00051506,120]
[320976736,1711726273978,-900.75,0.00051506,120]
[320976737,1711726273988,-500.0,0.00051506,120]
[320976738,1711726273998,-500.0,0.00051506,120]
[320976739,1711726274008,-500.0,0.00051506,120]
[320976740,1711726274018,-500.0,0.00051506,120]
[320976741,1711726274029,-500.0,0.00051506,120]
[320976742,1711726274039,-500.0,0.00051506,120]
[320976743,1711726274050,-541.66,0.00051506,120]
[320976744,1711726274070,-500.0,0.00051506,120]
[320976745,1711726274080,-500.0,0.00051506,120]
[320976746,1711726274090,-500.0,0.00051506,120]
[320976747,1711726274100,-500.0,0.00051506,120]
[320976748,1711726274110,-500.0,0.00051506,120]
[320976749,1711726274119,-500.0,0.00051506,120]
[320976750,1711726274130,-500.0,0.00051506,120]
[320976751,1711726274141,-500.0,0.00051506,120]
[320976752,1711726274152,-500.0,0.00051506,120]
[320976753,1711726274163,-500.0,0.00051506,120]
[320976754,1711726274173,-500.0,0.00051506,120]
[320976755,1711726274183,-500.0,0.00051506,120]
[320976756,1711726274192,-500.0,0.00051506,120]
[320976757,1711726274202,-500.0,0.00051506,120]
[320976758,1711726274212,-500.0,0.00051506,120]
[320976759,1711726274221,-500.0,0.00051506,120]
[320976760,1711726274231,-500.0,0.00051506,120]
[320976761,1711726274242,-500.0,0.00051506,120]
[320976762,1711726274253,-500.0,0.00051506,120]
[320976763,1711726274263,-500.0,0.00051506,120]
[320976764,1711726274411,-500.0,0.00051506,120]
[320976765,1711726274422,-500.0,0.00051506,120]
[320976766,1711726274432,-500.0,0.00051506,120]
[320976767,1711726274442,-524.41,0.00051506,120]
[320976768,1711726274451,-483.14,0.00051506,120]
[320976769,1711726274461,-500.0,0.00051506,120]
[320976770,1711726274471,-500.0,0.00051506,120]
[320976771,1711726274484,-593.93,0.00051506,120]
[320976772,1711726274499,-174.95,0.00051506,120]
[320976773,1711726274511,-615.90357319,0.00051506,120]
[320976774,1711726274522,-2105.64,0.00051506,120]
[320976775,1711726274533,-500.0,0.00051506,120]
[320976776,1711726274546,-500.0,0.00051506,120]
[320976777,1711726274570,-500.0,0.00051506,120]
[320976778,1711726274582,-500.0,0.00051506,120]
[320976779,1711726274592,-832.0,0.00051506,120]
[320976780,1711726274603,-500.0,0.00051506,120]
[320976781,1711726274615,-500.0,0.00051506,120]
[320976782,1711726274626,-500.0,0.00051506,120]
[320976783,1711726274637,-500.0,0.00051506,120]
[320976784,1711726274647,-500.0,0.00051506,120]
[320976785,1711726274657,-500.0,0.00051506,120]
[320976786,1711726274668,-500.0,0.00051506,120]
[320976787,1711726274678,-500.0,0.00051506,120]
[320976788,1711726274687,-500.0,0.00051506,120]
[320976789,1711726274697,-500.0,0.00051506,120]
[320976790,1711726274707,-500.0,0.00051506,120]
[320976791,1711726274716,-500.0,0.00051506,120]
[320976792,1711726274726,-500.0,0.00051506,120]
[320976793,1711726274735,-500.0,0.00051506,120]
[320976794,1711726274744,-500.0,0.00051506,120]
[320976795,1711726274754,-500.0,0.00051506,120]
[320976796,1711726274764,-500.0,0.00051506,120]
[320976797,1711726274773,-500.0,0.00051506,120]
[320976798,1711726274783,-1095.45,0.00051506,120]
[320976799,1711726274792,-500.0,0.00051506,120]
[320976800,1711726274801,-500.0,0.00051506,120]
[320976801,1711726274816,-500.0,0.00051506,120]
[320976802,1711726274826,-1919.57,0.00051506,120]
[320976803,1711726274835,-500.0,0.00051506,120]
[320976804,1711726274844,-500.0,0.00051506,120]
[320976805,1711726274853,-500.0,0.00051506,120]
[320976806,1711726274862,-500.0,0.00051506,120]
[320976807,1711726274871,-790.31,0.00051506,120]
[320976808,1711726274881,-500.0,0.00051506,120]
[320976809,1711726274889,-500.0,0.00051506,120]
[320976810,1711726274899,-3250.79,0.00051506,120]
[320976811,1711726274908,-500.0,0.00051506,120]
[320976812,1711726274918,-543.43,0.00051506,120]
[320976813,1711726274927,-2026.92,0.00051506,120]
[320976814,1711726274937,-2794.01,0.00051506,120]
[320976815,1711726274946,-508.65,0.00051506,120]
[320976816,1711726274955,-543.18,0.00051506,120]
[320976817,1711726274965,-500.0,0.00051506,120]
[320976818,1711726274974,-500.0,0.00051506,120]
[320976819,1711726274984,-725.25,0.00051506,120]
[320976820,1711726274993,-500.0,0.00051506,120]
[320976821,1711726275003,-500.0,0.00051506,120]
[320976822,1711726275013,-500.0,0.00051506,120]
[320976823,1711726275023,-1985.65,0.00051506,120]
[320976824,1711726275033,-500.0,0.00051506,120]
[320976825,1711726275043,-778.03,0.00051506,120]
[320976826,1711726275053,-966.8,0.00051506,120]
[320976827,1711726275068,-15575.03,0.00051506,120]
[320976828,1711726275078,-500.0,0.00051506,120]
[320976829,1711726275088,-1347.71,0.00051506,120]
[320976830,1711726275098,-500.0,0.00051506,120]
[320976831,1711726275109,-1542.42,0.00051506,120]
[320976832,1711726275119,-500.0,0.00051506,120]
[320976833,1711726275132,-500.0,0.00051506,120]
[320976834,1711726275142,-500.0,0.00051506,80]
[320976835,1711726275152,-1449.82,0.00051506,120]
[320976836,1711726275166,-2716.26,0.00051506,120]
[320976837,1711726275177,-764.96,0.00051506,120]
[320976838,1711726275187,-1663.53,0.00051506,120]
[320976839,1711726275197,-500.0,0.00051506,120]
[320976840,1711726275206,-1151.51,0.00051506,120]
[320976841,1711726275216,-500.0,0.00051506,120]
[320976842,1711726275226,-500.0,0.00051506,120]
[320976843,1711726275235,-769.64,0.00051506,120]
[320976844,1711726275245,-1016.62,0.00051506,120]
[320976845,1711726275255,-784.23,0.00051506,120]
[320976846,1711726275265,-500.0,0.00051506,120]
[320976847,1711726275276,-500.0,0.00051506,120]
[320976848,1711726275286,-500.0,0.00051506,120]
[320976849,1711726275296,-1622.26,0.00051506,120]
[320976850,1711726275311,-649.05693415,0.00051506,120]
[320976851,1711726275322,-500.0,0.00051506,120]
[320976852,1711726275332,-1424.61,0.00051506,120]
[320976853,1711726275343,-500.0,0.00051506,120]
[320976854,1711726275352,-815.78,0.00051506,120]
[320976855,1711726275361,-500.0,0.00051506,120]
[320976856,1711726275371,-500.0,0.00051506,120]
[320976857,1711726275381,-500.0,0.00051506,120]
[320976858,1711726275390,-500.0,0.00051506,120]
[320976859,1711726275400,-500.0,0.00051506,120]
[320976860,1711726275409,-500.0,0.00051506,60]
[320976861,1711726275419,-992.25,0.00051506,120]
[320976862,1711726275428,-11718.94,0.00051506,120]
[320976863,1711726275438,-743.51,0.00051506,120]
[320976864,1711726275448,-890.38,0.00051506,120]
[320976865,1711726275457,-765.17,0.00051506,120]
[320976866,1711726275467,-553.36,0.00051506,120]
[320976867,1711726275477,-8521.15,0.00051506,120]
[320976868,1711726275487,-500.0,0.00051506,120]
[320976869,1711726275497,-500.0,0.00051506,120]
[320976870,1711726275506,-500.0,0.00051506,120]
[320976871,1711726275516,-500.0,0.00051506,120]
[320976872,1711726275526,-648.88,0.00051506,120]
[320976873,1711726275536,-460.53376311,0.00051506,120]
[320976874,1711726275546,-1919.3,0.00051506,120]
[320976875,1711726275559,-500.0,0.00051506,120]
[320976876,1711726275570,-2207.99,0.00051506,120]
[320976877,1711726275580,-500.0,0.00051506,120]
[320976878,1711726275589,-1309.66,0.00051506,120]
[320976879,1711726275599,-557.08,0.00051506,120]
[320976880,1711726275609,-1108.08,0.00051506,120]
[320976881,1711726275618,-1833.17,0.00051506,120]
[320976882,1711726275628,-500.0,0.00051506,120]
[320976883,1711726275637,-607.25,0.00051506,120]
[320976884,1711726275647,-815.81,0.00051506,120]
[320976885,1711726275656,-862.41,0.00051506,120]
[320976886,1711726275666,-500.0,0.00051506,120]
[320976887,1711726275675,-1018.76,0.00051506,120]
[320976888,1711726275685,-500.0,0.00051506,120]
[320976889,1711726275694,-500.0,0.00051506,120]
[320976890,1711726275704,-1702.99,0.00051506,120]
[320976891,1711726275713,-1165.7,0.00051506,120]
[320976892,1711726275722,-1004.77,0.00051506,120]
[320976893,1711726275731,-696.93,0.00051506,120]
[320976894,1711726275741,-500.0,0.00051506,120]
[320976895,1711726275751,-500.0,0.00051506,120]
[320976896,1711726275761,-500.0,0.00051506,120]
[320976897,1711726275770,-1354.93,0.00051506,21]
[320976898,1711726275780,-500.0,0.00051506,120]
[320976899,1711726275789,-977.65,0.00051506,120]
[320976900,1711726275799,-1113.41,0.00051506,120]
[320976901,1711726275814,-500.0,0.00051506,120]
[320976902,1711726275823,-230.16952209,0.00051506,120]
[320976903,1711726275833,-500.0,0.00051506,120]
[320976904,1711726275842,-3333.95,0.00051506,120]
[320976905,1711726275852,-572.67,0.00051506,120]
[320976906,1711726275861,-683.76,0.00051506,120]
[320976907,1711726275870,-500.0,0.00051506,120]
[320976908,1711726275880,-500.0,0.00051506,120]
[320976909,1711726275889,-7484.68,0.00051506,120]
[320976910,1711726275899,-1354.15,0.00051506,120]
[320976911,1711726275908,-1280.61,0.00051506,120]
[320976912,1711726275917,-500.0,0.00051506,120]
[320976913,1711726275927,-500.0,0.00051506,120]
[320976914,1711726275937,-553.1,0.00051506,120]
[320976915,1711726275946,-3298.9,0.00051506,120]
[320976916,1711726275956,-3130.3,0.00051506,120]
[320976917,1711726275965,-2135.45,0.00051506,120]
[320976918,1711726275975,-1018.52,0.00051506,120]
[320976919,1711726275985,-2568.4,0.00051506,120]
[320976920,1711726275994,-594.87,0.00051506,120]
[320976921,1711726276004,-824.29,0.00051506,120]
[320976922,1711726276013,-628.61,0.00051506,120]
[320976923,1711726276023,-1054.95,0.00051506,120]
[320976924,1711726276033,-947.76,0.00051506,120]
[320976925,1711726276043,-500.0,0.00051506,120]
[320976926,1711726276053,-500.0,0.00051506,120]
[320976927,1711726276066,-500.0,0.00051506,120]
[320976928,1711726276076,-805.33,0.00051506,120]
[320976929,1711726276085,-500.0,0.00051506,120]
[320976930,1711726276095,-652.14,0.00051506,120]
[320976931,1711726276106,-500.0,0.00051506,120]
[320976932,1711726276115,-1684.07,0.00051506,120]
[320976933,1711726276127,-1222.42,0.00051506,120]
[320976934,1711726276137,-500.0,0.00051506,120]
[320976935,1711726276147,-500.0,0.00051506,120]
[320976936,1711726276157,-500.0,0.00051506,120]
[320976937,1711726276167,-647.43,0.00051506,120]
[320976938,1711726276177,-637.47,0.00051506,120]
[320976939,1711726276187,-929.07,0.00051506,120]
[320976940,1711726276197,-500.0,0.00051506,120]
[320976941,1711726276207,-1752.94,0.00051506,120]
[320976942,1711726276218,-506.23,0.00051506,120]
[320976943,1711726276228,-1482.27,0.00051506,120]
[320976944,1711726276238,-500.0,0.00051506,120]
[320976945,1711726276248,-1080.07,0.00051506,120]
[320976946,1711726276258,-500.0,0.00051506,120]
[320976947,1711726276267,-917.61,0.00051506,120]
[320976948,1711726276277,-500.0,0.00051506,120]
[320976949,1711726276287,-252.60676659,0.00051506,120]
[320976950,1711726276297,-824.53,0.00051506,120]
[320976951,1711726276310,-641.26,0.00051506,120]
[320976952,1711726276320,-579.18,0.00051506,120]
[320976953,1711726276331,-572.87,0.00051506,120]
[320976954,1711726276341,-1389.6,0.00051506,120]
[320976955,1711726276351,-975.56,0.00051506,120]
[320976956,1711726276362,-500.0,0.00051506,120]
[320976957,1711726276371,-500.0,0.00051506,120]
[320976958,1711726276381,-158.03,0.00051515,120]
[320976959,1711726276391,-227.38888889,0.00051616,120]
[320976960,1711726276400,-335.80220362,0.00051684,2]
[320976961,1711726276409,-155.0,0.0005178,4]
[320976962,1711726276419,-2895.40866245,0.0005178,4]
[320976963,1711726276428,-10413.46640118,0.0005178,5]
[320976964,1711726276438,-600.0,0.0005178,4]
[320976965,1711726276447,-677.35321529,0.0005178,4]
[320976966,1711726276456,-500.0,0.0005178,120]
[320976967,1711726276466,-500.0,0.0005178,120]
[320976968,1711726276475,-500.0,0.0005178,120]
[320976969,1711726276485,-500.0,0.0005178,120]
[320976970,1711726276495,-185.53650916,0.0005178,120]
[320976971,1711726276505,-500.0,0.0005178,120]
[320976972,1711726276515,-500.0,0.0005178,120]
[320976973,1711726276525,-500.0,0.0005178,120]
[320976974,1711726276541,-500.0,0.0005178,120]
[320976975,1711726276601,-500.0,0.0005178,120]
[320976976,1711726276612,-488.14,0.0005178,120]
[320976977,1711726276622,-583.56967095,0.0005178,120]
[320976978,1711726276633,-500.0,0.0005178,120]
[320976979,1711726276643,-500.0,0.0005178,120]
[320976980,1711726276652,-500.0,0.0005178,120]
[320976981,1711726276662,-500.0,0.0005178,120]
[320976982,1711726276680,-500.0,0.0005178,2]
[320976983,1711726276692,-500.0,0.0005178,120]
[320976984,1711726276702,-567.37323418,0.0005178,120]
[320976985,1711726276712,-500.0,0.0005178,120]
[320976986,1711726276722,-500.0,0.0005178,120]
[320976987,1711726276731,-500.0,0.0005178,120]
[320976988,1711726276741,-500.0,0.0005178,120]
[320976989,1711726276750,-500.0,0.0005178,120]
[320976990,1711726276760,-500.0,0.0005178,120]
[320976991,1711726276771,-264.79991036,0.0005178,2]
[320976992,1711726276782,-500.0,0.0005178,120]
[320976993,1711726276792,-500.0,0.0005178,120]
[320976994,1711726276803,-500.0,0.0005178,120]
[320976995,1711726276816,-500.0,0.0005178,120]
[320976996,1711726276826,-500.0,0.0005178,120]
[320976997,1711726276836,-500.0,0.0005178,2]
[320976998,1711726276845,-500.0,0.0005178,120]
[320976999,1711726276855,-500.0,0.0005178,120]
[320977000,1711726276864,-900.75,0.0005178,120]
[320977001,1711726276874,-500.0,0.0005178,120]
[320977002,1711726276884,-500.0,0.0005178,120]
[320977003,1711726276894,-500.0,0.0005178,120]
[320977004,1711726276903,-500.0,0.0005178,120]
[320977005,1711726276912,-500.0,0.0005178,120]
[320977006,1711726276921,-500.0,0.0005178,120]
[320977007,1711726276930,-541.66,0.0005178,120]
[320977008,1711726276940,-500.0,0.0005178,120]
[320977009,1711726276950,-500.0,0.0005178,120]
[320977010,1711726276959,-500.0,0.0005178,120]
[320977011,1711726276969,-500.0,0.0005178,120]
[320977012,1711726276979,-428.60482501,0.0005178,120]
[320977013,1711726276989,-500.0,0.0005178,120]
[320977014,1711726276998,-218.90657379,0.0005178,120]
[320977015,1711726277007,-500.0,0.0005178,120]
[320977016,1711726277017,-500.0,0.0005178,120]
[320977017,1711726277027,-500.0,0.0005178,120]
[320977018,1711726277036,-500.0,0.0005178,120]
[320977019,1711726277046,-368.01723505,0.0005178,120]
[320977020,1711726277056,-500.0,0.0005178,120]
[320977021,1711726277070,-500.0,0.0005178,120]
[320977022,1711726277080,-500.0,0.0005178,120]
[320977023,1711726277262,-500.0,0.0005178,120]
[320977024,1711726277272,-500.0,0.0005178,120]
[320977025,1711726277282,-500.0,0.0005178,120]
[320977026,1711726277292,-500.0,0.0005178,120]
[320977027,1711726277301,-500.0,0.0005178,120]
[320977028,1711726277313,-500.0,0.0005178,120]
[320977029,1711726277324,-500.0,0.0005178,120]
[320977030,1711726277337,-524.41,0.0005178,120]
[320977031,1711726277347,-500.0,0.0005178,120]
[320977032,1711726277357,-550.72,0.0005178,120]
[320977033,1711726277366,-593.93,0.0005178,120]
[320977034,1711726277376,-174.95,0.0005178,120]
[320977035,1711726277385,-2105.64,0.0005178,120]
[320977036,1711726277395,-500.0,0.0005178,120]
[320977037,1711726277404,-500.0,0.0005178,120]
[320977038,1711726277414,-500.0,0.0005178,120]
[320977039,1711726277423,-832.0,0.0005178,120]
[320977040,1711726277433,-500.0,0.0005178,120]
[320977041,1711726277443,-500.0,0.0005178,120]
[320977042,1711726277453,-500.0,0.0005178,120]
[320977043,1711726277463,-500.0,0.0005178,120]
[320977044,1711726277473,-500.0,0.0005178,120]
[320977045,1711726277482,-500.0,0.0005178,120]
[320977046,1711726277492,-500.0,0.0005178,120]
[320977047,1711726277502,-500.0,0.0005178,120]
[320977048,1711726277511,-500.0,0.0005178,120]
[320977049,1711726277521,-500.0,0.0005178,120]
[320977050,1711726277531,-500.0,0.0005178,120]
[320977051,1711726277541,-500.0,0.0005178,120]
[320977052,1711726277551,-500.0,0.0005178,120]
[320977053,1711726277564,-500.0,0.0005178,120]
[320977054,1711726277575,-500.0,0.0005178,120]
[320977055,1711726277584,-500.0,0.0005178,120]
[320977056,1711726277594,-500.0,0.0005178,120]
[320977057,1711726277603,-1095.45,0.0005178,120]
[320977058,1711726277613,-500.0,0.0005178,120]
[320977059,1711726277622,-500.0,0.0005178,120]
[320977060,1711726277632,-619.27,0.0005178,120]
[320977061,1711726277642,-1919.57,0.0005178,120]
[320977062,1711726277651,-500.0,0.0005178,120]
[320977063,1711726277661,-500.0,0.0005178,120]
[320977064,1711726277670,-500.0,0.0005178,120]
[320977065,1711726277680,-500.0,0.0005178,120]
[320977066,1711726277690,-790.31,0.0005178,120]
[320977067,1711726277699,-500.0,0.0005178,120]
[320977068,1711726277709,-500.0,0.0005178,120]
[320977069,1711726277719,-3250.79,0.0005178,120]
[320977070,1711726277729,-500.0,0.0005178,120]
[320977071,1711726277739,-543.43,0.0005178,120]
[320977072,1711726277749,-2026.92,0.0005178,120]
[320977073,1711726277759,-2794.01,0.0005178,120]
[320977074,1711726277769,-508.65,0.0005178,120]
[320977075,1711726277779,-543.18,0.0005178,120]
[320977076,1711726277789,-505.88540977,0.0005178,120]
[320977077,1711726277800,-500.0,0.0005178,120]
[320977078,1711726277814,-725.25,0.0005178,120]
[320977079,1711726277825,-500.0,0.0005178,120]
[320977080,1711726277835,-500.0,0.0005178,120]
[320977081,1711726277847,-500.0,0.0005178,120]
[320977082,1711726277858,-1985.65,0.0005178,120]
[320977083,1711726277875,-500.0,0.0005178,120]
[320977084,1711726277887,-778.03,0.0005178,120]
[320977085,1711726277898,-966.8,0.0005178,120]
[320977086,1711726277909,-15575.03,0.0005178,120]
[320977087,1711726277919,-500.0,0.0005178,120]
[320977088,1711726277930,-1347.71,0.0005178,120]
[320977089,1711726277940,-500.0,0.0005178,120]
[320977090,1711726277951,-1542.42,0.0005178,120]
[320977091,1711726277962,-500.0,0.0005178,120]
[320977092,1711726277972,-500.0,0.0005178,120]
[320977093,1711726277982,-500.0,0.0005178,80]
[320977094,1711726277992,-1449.82,0.0005178,120]
[320977095,1711726278002,-2716.26,0.0005178,120]
[320977096,1711726278012,-764.96,0.0005178,120]
[320977097,1711726278022,-1663.53,0.0005178,120]
[320977098,1711726278032,-500.0,0.0005178,120]
[320977099,1711726278043,-1151.51,0.0005178,120]
[320977100,1711726278052,-500.0,0.0005178,120]
[320977101,1711726278067,-500.0,0.0005178,120]
[320977102,1711726278077,-769.64,0.0005178,120]
[320977103,1711726278088,-1016.62,0.0005178,120]
[320977104,1711726278098,-784.23,0.0005178,120]
[320977105,1711726278108,-601.81846718,0.0005178,120]
[320977106,1711726278118,-500.0,0.0005178,120]
[320977107,1711726278130,-500.0,0.0005178,120]
[320977108,1711726278140,-1622.26,0.0005178,120]
[320977109,1711726278150,-500.0,0.0005178,120]
[320977110,1711726278163,-1424.61,0.0005178,120]
[320977111,1711726278173,-500.0,0.0005178,120]
[320977112,1711726278183,-815.78,0.0005178,120]
[320977113,1711726278194,-179.12159999,0.0005178,120]
[320977114,1711726278204,-500.0,0.0005178,120]
[320977115,1711726278214,-500.0,0.0005178,120]
[320977116,1711726278225,-500.0,0.0005178,120]
[320977117,1711726278236,-500.0,0.0005178,120]
[320977118,1711726278248,-500.0,0.0005178,60]
[320977119,1711726278259,-992.25,0.0005178,120]
[320977120,1711726278269,-11718.94,0.0005178,120]
[320977121,1711726278279,-743.51,0.0005178,120]
[320977122,1711726278289,-890.38,0.0005178,120]
[320977123,1711726278299,-765.17,0.0005178,120]
[320977124,1711726278312,-553.36,0.0005178,120]
[320977125,1711726278322,-8521.15,0.0005178,120]
[320977126,1711726278332,-500.0,0.0005178,120]
[320977127,1711726278343,-500.0,0.0005178,120]
[320977128,1711726278353,-500.0,0.0005178,120]
[320977129,1711726278364,-554.62,0.0005178,120]
[320977130,1711726278374,-648.88,0.0005178,120]
[320977131,1711726278385,-1919.3,0.0005178,120]
[320977132,1711726278396,-500.0,0.0005178,120]
[320977133,1711726278406,-2207.99,0.0005178,120]
[320977134,1711726278416,-500.0,0.0005178,120]
[320977135,1711726278426,-1309.66,0.0005178,120]
[320977136,1711726278436,-557.08,0.0005178,120]
[320977137,1711726278446,-1108.08,0.0005178,120]
[320977138,1711726278457,-1833.17,0.0005178,120]
[320977139,1711726278467,-500.0,0.0005178,120]
[320977140,1711726278477,-607.25,0.0005178,120]
[320977141,1711726278487,-815.81,0.0005178,120]
[320977142,1711726278497,-862.41,0.0005178,120]
[320977143,1711726278507,-500.0,0.0005178,120]
[320977144,1711726278517,-1018.76,0.0005178,120]
[320977145,1711726278527,-500.0,0.0005178,120]
[320977146,1711726278536,-500.0,0.0005178,120]
[320977147,1711726278546,-1702.99,0.0005178,120]
[320977148,1711726278556,-1165.7,0.0005178,120]
[320977149,1711726278567,-1004.77,0.0005178,120]
[320977150,1711726278577,-696.93,0.0005178,120]
[320977151,1711726278590,-500.0,0.0005178,120]
[320977152,1711726278600,-500.0,0.0005178,120]
[320977153,1711726278610,-500.0,0.0005178,120]
[320977154,1711726278620,-1354.93,0.0005178,21]
[320977155,1711726278629,-500.0,0.0005178,120]
[320977156,1711726278639,-977.65,0.0005178,120]
[320977157,1711726278649,-1113.41,0.0005178,120]
[320977158,1711726278659,-500.0,0.0005178,120]
[320977159,1711726278669,-3333.95,0.0005178,120]
[320977160,1711726278679,-500.0,0.0005178,120]
[320977161,1711726278688,-572.67,0.0005178,120]
[320977162,1711726278698,-683.76,0.0005178,120]
[320977163,1711726278707,-529.46,0.0005178,120]
[320977164,1711726278718,-500.0,0.0005178,120]
[320977165,1711726278728,-7484.68,0.0005178,120]
[320977166,1711726278737,-1354.15,0.0005178,120]
[320977167,1711726278748,-1280.61,0.0005178,120]
[320977168,1711726278757,-500.0,0.0005178,120]
[320977169,1711726278766,-500.0,0.0005178,120]
[320977170,1711726278777,-553.1,0.0005178,120]
[320977171,1711726278787,-3298.9,0.0005178,120]
[320977172,1711726278796,-3130.3,0.0005178,120]
[320977173,1711726278806,-1018.52,0.0005178,120]
[320977174,1711726278818,-2135.45,0.0005178,120]
[320977175,1711726278828,-2568.4,0.0005178,120]
[320977176,1711726278838,-594.87,0.0005178,120]
[320977177,1711726278847,-824.29,0.0005178,120]
[320977178,1711726278857,-628.61,0.0005178,120]
[320977179,1711726278867,-1054.95,0.0005178,120]
[320977180,1711726278876,-947.76,0.0005178,120]
[320977181,1711726278886,-556.41699378,0.0005178,120]
[320977182,1711726278896,-500.0,0.0005178,120]
[320977183,1711726278905,-500.0,0.0005178,120]
[320977184,1711726278915,-805.33,0.0005178,120]
[320977185,1711726278925,-500.0,0.0005178,120]
[320977186,1711726278935,-652.14,0.0005178,120]
[320977187,1711726278945,-1405.95,0.0005178,72]
[320977188,1711726278955,-500.0,0.0005178,120]
[320977189,1711726278965,-1684.07,0.0005178,120]
[320977190,1711726278975,-1222.42,0.0005178,120]
[320977191,1711726278985,-500.0,0.0005178,120]
[320977192,1711726278995,-500.0,0.0005178,120]
[320977193,1711726279005,-500.0,0.0005178,120]
[320977194,1711726279015,-647.43,0.0005178,120]
[320977195,1711726279025,-637.47,0.0005178,120]
[320977196,1711726279034,-929.07,0.0005178,120]
[320977197,1711726279044,-500.0,0.0005178,120]